bitfinex/quotes_BTCUSD_20240701
["timestamp","ask_amount","ask_price","bid_price","bid_amount"]
[1719796197243,0.05766103,63358.0,63353.0,0.16308792]
[1719796197556,0.16233898,63357.0,63354.0,0.0031565]
[1719796198234,0.16233898,63357.0,63354.0,0.16216392]
[1719796198789,0.15733898,63357.0,63354.0,0.16216392]
[1719796199360,0.05766103,63355.0,63354.0,0.16216392]
[1719796199608,0.15733898,63357.0,63354.0,0.16216392]
[1719796199814,0.05766103,63355.0,63354.0,0.16216392]
[1719796200438,0.15733898,63357.0,63354.0,0.16216392]
[1719796200814,0.05766103,63356.0,63354.0,0.16216392]
[1719796201030,0.22000001,63356.0,63354.0,0.16216392]
[1719796201236,0.16233898,63355.0,63354.0,0.16216392]
[1719796201478,0.05766103,63350.0,63343.0,0.06322]
[1719796201641,0.05766103,63354.0,63343.0,0.06322]
[1719796201965,0.05766103,63352.0,63343.0,0.06322]
[1719796202167,0.16233898,63352.0,63344.0,0.00315672]
[1719796202524,0.05766103,63358.0,63344.0,0.00315672]
[1719796202726,0.16233898,63357.0,63344.0,0.00315672]
[1719796203161,0.16233898,63357.0,63344.0,0.02315672]
[1719796203313,0.16233898,63357.0,63344.0,0.00315672]
[1719796203729,0.05766103,63358.0,63344.0,0.02315672]
[1719796203936,0.22000001,63358.0,63344.0,0.02315672]
[1719796204136,0.22000001,63358.0,63344.0,0.16216392]
[1719796204137,0.16233898,63357.0,63344.0,0.16216392]
[1719796204342,0.05766103,63354.0,63345.0,0.13120665]
[1719796204541,0.16233898,63353.0,63344.0,0.16216392]
[1719796204745,0.05766103,63351.0,63344.0,0.16216392]
[1719796204988,0.05766103,63350.0,63344.0,0.16216392]
[1719796205168,0.05766103,63348.0,63344.0,0.16216392]
[1719796205376,0.16233898,63347.0,63344.0,0.16216392]
[1719796205574,0.22000001,63347.0,63344.0,0.16216392]
[1719796205860,0.05766103,63345.0,63344.0,0.16216392]
[1719796206239,0.22000001,63345.0,63344.0,0.16216392]
[1719796206648,0.43020001,63345.0,63344.0,0.16216392]
[1719796207497,0.22000001,63345.0,63344.0,0.16216392]
[1719796207697,0.16233898,63345.0,63344.0,0.16216392]
[1719796207921,0.02396674,63353.0,63344.0,0.16532105]
[1719796208077,0.16233898,63353.0,63345.0,0.2442]
[1719796208529,0.16233898,63353.0,63346.0,0.00315675]
[1719796208727,0.16233898,63353.0,63345.0,0.2442]
[1719796208928,0.05766103,63352.0,63345.0,0.2442]
[1719796209105,0.05766103,63351.0,63344.0,0.16216392]
[1719796209477,0.05766103,63349.0,63344.0,0.16216392]
[1719796209693,0.16233898,63350.0,63344.0,0.16216392]
[1719796209694,0.05766103,63347.0,63344.0,0.16216392]
[1719796209841,0.22000001,63347.0,63344.0,0.16216392]
[1719796210512,0.05766103,63345.0,63344.0,0.16216392]
[1719796210717,0.22000001,63345.0,63344.0,0.16216392]
[1719796210922,0.16233898,63345.0,63344.0,0.16216392]
[1719796211133,0.22000001,63345.0,63344.0,0.16216392]
[1719796212584,0.32000001,63345.0,63344.0,0.16216392]
[1719796213544,0.32394683,63345.0,63344.0,0.16216392]
[1719796214538,0.32000001,63345.0,63343.0,7.000924]
[1719796214706,0.22000001,63344.0,63343.0,6.967924]
[1719796214908,0.22000001,63344.0,63343.0,7.13008792]
[1719796215335,0.22000001,63344.0,63343.0,7.10208792]
[1719796216722,0.24000001,63344.0,63343.0,7.10208792]
[1719796216940,0.40181497,63344.0,63343.0,7.10208792]
[1719796217119,0.40181497,63344.0,63343.0,7.10608792]
[1719796217120,0.40281497,63344.0,63343.0,7.10608792]
[1719796217333,0.22494697,63344.0,63343.0,7.10608792]
[1719796217552,0.32494697,63344.0,63343.0,7.10608792]
[1719796217845,0.32394697,63344.0,63343.0,7.10208792]
[1719796218073,0.32394697,63344.0,63343.0,7.10608792]
[1719796218074,0.32494697,63344.0,63343.0,7.10608792]
[1719796218846,0.34494697,63344.0,63343.0,7.10608792]
[1719796219230,0.50281497,63344.0,63343.0,7.10608792]
[1719796219391,0.50281497,63344.0,63343.0,5.855496]
[1719796219392,1.13428697,63344.0,63343.0,5.855496]
[1719796219596,1.13428697,63344.0,63343.0,5.798876]
[1719796219597,1.13328697,63344.0,63343.0,5.798876]
[1719796219797,1.21701609,63344.0,63343.0,5.798876]
[1719796219974,0.40767609,63344.0,63343.0,5.798876]
[1719796220175,0.32394697,63344.0,63343.0,5.798876]
[1719796220356,0.32394697,63344.0,63343.0,5.769876]
[1719796220566,0.32494697,63344.0,63343.0,5.769876]
[1719796221020,0.32394697,63344.0,63343.0,5.765876]
[1719796221382,0.32494697,63344.0,63343.0,5.769876]
[1719796222929,0.33494697,63344.0,63343.0,5.769876]
[1719796223353,0.32394697,63344.0,63343.0,5.765876]
[1719796223577,0.33494697,63344.0,63343.0,5.769876]
[1719796224198,0.32394697,63344.0,63343.0,5.765876]
[1719796224414,0.32494697,63344.0,63343.0,5.769876]
[1719796224970,0.26333898,63344.0,63343.0,5.769876]
[1719796225120,0.32100001,63344.0,63343.0,5.769876]
[1719796226719,0.32494719,63344.0,63343.0,5.769876]
[1719796227372,1.50999719,63344.0,63343.0,3.11466395]
[1719796227584,1.50999719,63344.0,63343.0,3.03779808]
[1719796227585,1.63373912,63344.0,63343.0,3.03779808]
[1719796228101,0.78338848,63344.0,63343.0,3.03379808]
[1719796228392,0.52197848,63344.0,63343.0,3.03379808]
[1719796228747,0.43824719,63344.0,63343.0,3.03379808]
[1719796228954,0.32000001,63344.0,63343.0,3.03379808]
[1719796229410,0.32000001,63344.0,63343.0,3.03679808]
[1719796229900,0.32000001,63344.0,63343.0,3.03379808]
[1719796230366,0.32100001,63344.0,63343.0,3.03779808]
[1719796231733,0.32494724,63344.0,63343.0,3.03779808]
[1719796231939,0.48281524,63344.0,63343.0,3.03779808]
[1719796232135,0.32494724,63344.0,63343.0,3.03779808]
[1719796232714,0.32000001,63344.0,63343.0,3.03379808]
[1719796233236,0.32000001,63344.0,63343.0,3.03579808]
[1719796233650,0.32000001,63344.0,63343.0,3.03379808]
[1719796233814,0.32100001,63344.0,63343.0,3.03779808]
[1719796234220,0.32100001,63344.0,63343.0,3.03379808]
[1719796234420,0.32394721,63344.0,63343.0,3.03379808]
[1719796234620,0.16233898,63344.0,63343.0,3.03379808]
[1719796234826,0.02322198,63350.0,63343.0,3.28989808]
[1719796235103,0.02322198,63350.0,63344.0,0.13122117]
[1719796235104,0.16233898,63350.0,63344.0,0.13122117]
[1719796235312,0.16233898,63350.0,63345.0,0.13122117]
[1719796235438,0.16233898,63350.0,63346.0,0.13122117]
[1719796235639,0.001,63344.0,63343.0,3.456062]
[1719796236032,0.16233898,63350.0,63343.0,3.456062]
[1719796236269,0.16233898,63350.0,63344.0,0.13120857]
[1719796236474,0.16233898,63350.0,63345.0,0.13120857]
[1719796236665,0.16233898,63349.0,63346.0,0.13120857]
[1719796236869,0.16233898,63349.0,63343.0,3.452062]
[1719796237149,0.014,63350.0,63344.0,0.29223312]
[1719796237338,0.014,63350.0,63347.0,0.02]
[1719796237490,0.02406337,63356.0,63348.0,0.00315682]
[1719796237705,0.00084,63359.0,63348.0,0.00315682]
[1719796237706,0.16233898,63355.0,63348.0,0.00315682]
[1719796238553,0.00084,63350.0,63343.0,3.452062]
[1719796238720,0.16317898,63350.0,63344.0,0.13120311]
[1719796238916,0.17717898,63350.0,63345.0,0.13120311]
[1719796239251,0.17717898,63350.0,63346.0,0.13120311]
[1719796239554,0.17717898,63350.0,63343.0,3.452062]
[1719796239555,0.16233898,63349.0,63343.0,3.452062]
[1719796239705,0.16233898,63349.0,63344.0,0.13120544]
[1719796240524,0.16233898,63349.0,63343.0,3.452062]
[1719796240724,0.17633898,63349.0,63343.0,3.453062]
[1719796242267,0.17633898,63349.0,63343.0,3.452062]
[1719796242268,0.16233898,63349.0,63343.0,3.452062]
[1719796242664,0.17633898,63349.0,63343.0,3.452062]
[1719796242926,0.014,63349.0,63347.0,0.157858]
[1719796243115,0.00084,63359.0,63355.0,0.02]
[1719796243392,0.00084,63359.0,63358.0,0.02]
[1719796243756,0.00084,63359.0,63358.0,0.81232137]
[1719796243964,0.00084,63359.0,63358.0,0.62782625]
[1719796244167,0.00084,63359.0,63358.0,0.60782625]
[1719796244369,0.00084,63359.0,63358.0,0.177833]
[1719796244487,0.00184,63359.0,63358.0,0.177833]
[1719796245092,0.00184,63359.0,63358.0,0.157833]
[1719796245304,0.00184,63359.0,63356.0,0.2421]
[1719796245305,0.00184,63359.0,63356.0,0.419937]
[1719796245507,0.00184,63359.0,63357.0,0.157835]
[1719796245712,0.00184,63359.0,63357.0,0.177835]
[1719796245900,0.00184,63359.0,63356.0,0.2421]
[1719796246498,0.00084,63359.0,63356.0,0.2421]
[1719796246706,0.00884,63359.0,63358.0,0.001]
[1719796247238,0.00884,63359.0,63356.0,0.2421]
[1719796247239,0.00084,63359.0,63356.0,0.2421]
[1719796247489,0.00884,63359.0,63356.0,0.2431]
[1719796247703,0.00884,63359.0,63357.0,0.063203]
[1719796248057,0.00084,63359.0,63357.0,0.083203]
[1719796248281,0.00084,63359.0,63358.0,0.18098947]
[1719796248482,0.00884,63359.0,63358.0,0.18198947]
[1719796248684,0.00884,63359.0,63358.0,0.95250397]
[1719796249461,0.00884,63359.0,63358.0,0.810165]
[1719796249808,0.00084,63359.0,63358.0,0.95150397]
[1719796249963,0.00084,63359.0,63358.0,0.809165]
[1719796250367,0.00084,63359.0,63358.0,0.789165]
[1719796250574,0.00084,63359.0,63357.0,0.063203]
[1719796250766,0.02301095,63374.0,63359.0,0.02]
[1719796251351,0.02301095,63374.0,63359.0,0.63582997]
[1719796251524,0.02301095,63374.0,63359.0,0.95149097]
[1719796251703,0.02301095,63374.0,63359.0,0.809152]
[1719796252078,0.02301095,63374.0,63359.0,0.95149097]
[1719796252227,0.02301095,63374.0,63359.0,0.809152]
[1719796253033,0.02301095,63374.0,63359.0,0.95149097]
[1719796253238,0.25,63377.0,63359.0,0.95149097]
[1719796253239,0.25,63377.0,63359.0,1.08265147]
[1719796253440,0.7334,63360.0,63359.0,1.40615147]
[1719796253613,0.7334,63360.0,63359.0,1.27499097]
[1719796253812,0.7424,63360.0,63359.0,1.40714918]
[1719796254247,0.7334,63360.0,63359.0,1.40614918]
[1719796254646,0.7424,63360.0,63359.0,1.40714918]
[1719796254843,0.7424,63360.0,63359.0,1.72281018]
[1719796255047,0.7334,63360.0,63359.0,1.72181018]
[1719796255248,0.7334,63360.0,63359.0,1.72281018]
[1719796255449,0.7424,63360.0,63359.0,1.58047121]
[1719796255650,0.7424,63360.0,63359.0,1.72281018]
[1719796256200,0.27324409,63377.0,63376.0,0.493364]
[1719796256201,0.25,63377.0,63376.0,0.493364]
[1719796256433,0.25,63377.0,63376.0,1.23942792]
[1719796257215,0.05766103,63396.0,63376.0,1.23942792]
[1719796257216,0.27281,63408.0,63388.0,0.08]
[1719796257605,0.11651492,63426.0,63405.0,0.2534]
[1719796257811,0.05333592,63426.0,63414.0,0.2534]
[1719796258000,0.10445565,63426.0,63415.0,0.2]
[1719796258207,0.10445565,63426.0,63423.0,0.5113]
[1719796258427,0.10445565,63426.0,63423.0,0.16216392]
[1719796258630,0.31954183,63437.0,63424.0,0.16233898]
[1719796258631,0.00394153,63434.0,63424.0,0.16233898]
[1719796258854,0.00394153,63434.0,63423.0,0.16216392]
[1719796259061,0.0234232,63437.0,63425.0,0.00315339]
[1719796259258,0.0234232,63437.0,63430.0,0.157651]
[1719796259460,0.05766103,63431.0,63430.0,0.16216392]
[1719796259661,0.16233898,63431.0,63430.0,0.16216392]
[1719796260467,0.47550001,63431.0,63430.0,0.16216392]
[1719796260637,0.41783898,63431.0,63430.0,0.16216392]
[1719796260839,0.41783898,63431.0,63430.0,0.16316392]
[1719796261245,0.41783898,63431.0,63430.0,0.16216392]
[1719796261246,0.38783898,63431.0,63430.0,0.16216392]
[1719796261418,0.23233898,63431.0,63430.0,0.16216392]
[1719796261599,0.05766103,63436.0,63430.0,0.17616392]
[1719796261805,0.02573488,63438.0,63430.0,0.17616392]
[1719796261806,0.12573488,63438.0,63431.0,0.0031527]
[1719796262034,0.22394088,63437.0,63430.0,0.17616392]
[1719796262436,0.16233898,63437.0,63430.0,0.17616392]
[1719796262687,0.02573488,63438.0,63431.0,0.00315289]
[1719796263292,0.00253192,63445.0,63440.0,0.08]
[1719796263466,0.00253192,63445.0,63441.0,0.5661]
[1719796263894,0.02604445,63445.0,63441.0,0.5661]
[1719796264089,0.02604445,63445.0,63440.0,0.16216392]
[1719796264090,0.16233898,63444.0,63440.0,0.16216392]
[1719796264293,0.05766103,63441.0,63440.0,0.16216392]
[1719796264523,0.16233898,63444.0,63440.0,0.16216392]
[1719796264715,0.05766103,63443.0,63440.0,0.16216392]
[1719796264892,0.05766103,63443.0,63441.0,0.001]
[1719796265108,0.16233898,63442.0,63441.0,0.001]
[1719796265713,0.01453192,63445.0,63444.0,0.2465]
[1719796266111,0.00253192,63445.0,63444.0,0.2465]
[1719796266358,0.01308403,63455.0,63445.0,0.08]
[1719796267555,0.01308403,63455.0,63446.0,0.00315184]
[1719796267756,0.01308403,63455.0,63446.0,0.2]
[1719796267974,0.01308403,63455.0,63446.0,0.357614]
[1719796268190,0.01308403,63455.0,63446.0,0.515224]
[1719796268191,0.0169003,63450.0,63446.0,0.515224]
[1719796268402,0.00216105,63479.0,63472.0,1.631849]
[1719796268622,0.00216105,63479.0,63472.0,3.74270369]
[1719796268623,0.01037886,63473.0,63472.0,3.74270369]
[1719796268845,0.00841,63502.0,63472.0,3.74270369]
[1719796268846,0.157417,63526.0,63489.0,0.2]
[1719796269078,0.08130346,63537.0,63489.0,0.16216392]
[1719796269079,0.48811044,63490.0,63489.0,0.16216392]
[1719796269287,0.2,63522.0,63490.0,0.2]
[1719796269462,0.2,63522.0,63489.0,0.16216392]
[1719796269693,0.69652044,63514.0,63489.0,0.16216392]
[1719796269902,0.16233898,63494.0,63489.0,0.16216392]
[1719796270128,0.157505,63490.0,63489.0,0.16216392]
[1719796270355,0.315021,63488.0,63475.0,0.48811044]
[1719796270559,0.157522,63483.0,63477.0,0.48811044]
[1719796270803,0.02852879,63512.0,63511.0,0.94907499]
[1719796271013,0.786373,63584.0,63511.0,0.94907499]
[1719796271014,0.02373059,63550.0,63534.0,0.2]
[1719796271252,0.02373059,63550.0,63540.0,0.08]
[1719796271538,0.02373059,63550.0,63540.0,0.28]
[1719796271790,0.2418,63557.0,63540.0,0.08]
[1719796272011,0.2418,63557.0,63544.0,0.2]
[1719796272269,0.2418,63557.0,63544.0,0.16216392]
[1719796272481,0.315,63614.0,63544.0,0.16216392]
[1719796272482,0.2,63574.0,63545.0,0.08]
[1719796272696,0.2405,63573.0,63545.0,0.24233898]
[1719796272886,0.08130346,63572.0,63545.0,0.08]
[1719796273088,0.00841,63554.0,63545.0,0.08]
[1719796273305,0.012,63550.0,63545.0,0.08]
[1719796273659,0.00841,63554.0,63545.0,0.08]
[1719796274033,0.00841,63554.0,63545.0,0.089]
[1719796274556,0.00841,63554.0,63545.0,0.08]
[1719796274756,0.00841,63554.0,63545.0,0.094]
[1719796276033,0.00841,63554.0,63545.0,0.10186]
[1719796276353,0.00841,63554.0,63545.0,0.08786]
[1719796276553,0.00841,63554.0,63545.0,0.28786]
[1719796276666,0.02041,63554.0,63545.0,0.08886]
[1719796276873,0.02041,63554.0,63533.0,0.02]
[1719796276874,0.08130346,63546.0,63530.0,0.2]
[1719796277123,0.08130346,63546.0,63524.0,0.2]
[1719796277124,0.08130346,63538.0,63531.0,0.48811044]
[1719796277323,0.2288,63539.0,63531.0,0.65027436]
[1719796277479,0.39113898,63539.0,63531.0,0.22519992]
[1719796277944,0.01941,63554.0,63531.0,0.22519992]
[1719796277945,0.176756,63554.0,63534.0,0.48811044]
[1719796278171,0.2288,63552.0,63531.0,0.22519992]
[1719796278346,0.2288,63537.0,63531.0,0.22519992]
[1719796278754,0.38619,63537.0,63531.0,0.22519992]
[1719796278952,0.157396,63534.0,63531.0,0.22519992]
[1719796279108,0.1574,63533.0,63531.0,0.22519992]
[1719796279319,0.1,63536.0,63531.0,0.22519992]
[1719796279320,0.10393491,63536.0,63531.0,0.22519992]
[1719796279525,0.16627389,63536.0,63531.0,0.22619992]
[1719796279952,0.16627389,63536.0,63531.0,0.22519992]
[1719796280153,0.16233898,63535.0,63531.0,0.22519992]
[1719796280350,0.16233898,63535.0,63531.0,0.22619992]
[1719796280351,0.701001,63532.0,63531.0,0.22619992]
[1719796280562,0.96333998,63532.0,63531.0,0.22619992]
[1719796280754,1.27814098,63532.0,63531.0,0.16216392]
[1719796281055,0.3238,63527.0,63515.0,0.48811044]
[1719796281262,0.31875042,63530.0,63527.0,0.06305]
[1719796281593,0.31875042,63530.0,63527.0,0.16216392]
[1719796281594,0.787052,63528.0,63527.0,0.16216392]
[1719796281808,0.94939098,63528.0,63527.0,0.16216392]
[1719796282006,1.36421198,63528.0,63527.0,0.16216392]
[1719796282138,0.787152,63520.0,63519.0,0.063052]
[1719796282338,0.787152,63520.0,63519.0,0.22521592]
[1719796282339,0.86342998,63520.0,63519.0,0.22521592]
[1719796282546,0.3238,63537.0,63519.0,0.22521592]
[1719796282792,0.02910709,63552.0,63519.0,0.22521592]
[1719796282793,0.5839,63548.0,63524.0,0.2]
[1719796282993,0.5839,63548.0,63520.0,0.56694824]
[1719796282994,0.986,63530.0,63526.0,0.2]
[1719796283208,0.986,63530.0,63529.0,0.22]
[1719796283415,0.986,63530.0,63529.0,0.2]
[1719796283618,0.986,63530.0,63526.0,0.18216392]
[1719796283619,0.986,63530.0,63527.0,0.2]
[1719796283829,0.986,63530.0,63529.0,0.2]
[1719796284234,0.9855,63530.0,63529.0,0.2]
[1719796284446,0.9855,63530.0,63529.0,0.221]
[1719796284447,0.9915,63530.0,63529.0,0.221]
[1719796284650,0.9915,63530.0,63529.0,0.201]
[1719796284851,0.9915,63530.0,63529.0,0.221]
[1719796285262,0.9915,63530.0,63529.0,0.38333898]
[1719796285703,0.9915,63530.0,63529.0,0.38233898]
[1719796285935,0.9855,63530.0,63529.0,0.2]
[1719796286134,0.157413,63527.0,63526.0,0.16216392]
[1719796286353,0.386213,63527.0,63526.0,0.16216392]
[1719796286551,0.696039,63527.0,63526.0,0.16216392]
[1719796286850,0.9995,63530.0,63526.0,0.16216392]
[1719796287046,0.9995,63530.0,63529.0,0.22]
[1719796287347,0.9995,63530.0,63529.0,0.2]
[1719796287562,0.9995,63530.0,63529.0,0.22]
[1719796287728,0.9995,63530.0,63529.0,0.2]
[1719796287929,0.94576011,63530.0,63529.0,0.22]
[1719796289118,0.94576011,63530.0,63529.0,0.2]
[1719796289513,0.94576011,63530.0,63529.0,0.22]
[1719796289627,0.94576011,63530.0,63529.0,0.2]
[1719796290029,0.95976011,63530.0,63529.0,0.2]
[1719796290234,0.95976011,63530.0,63528.0,0.2]
[1719796290439,0.95976011,63530.0,63526.0,0.36216392]
[1719796290676,0.157413,63527.0,63526.0,0.16216392]
[1719796290882,0.31975198,63527.0,63526.0,0.16216392]
[1719796291301,1.17556011,63530.0,63526.0,0.16216392]
[1719796291707,1.17556011,63530.0,63526.0,0.36216392]
[1719796291907,1.17556011,63530.0,63527.0,0.2]
[1719796292149,1.17556011,63530.0,63526.0,0.16216392]
[1719796292150,0.94676011,63530.0,63526.0,0.16216392]
[1719796292364,0.16233898,63529.0,63526.0,0.16216392]
[1719796292601,0.16233898,63529.0,63528.0,0.2]
[1719796292804,0.94576011,63530.0,63528.0,0.2]
[1719796292967,0.94676011,63530.0,63529.0,0.2]
[1719796293148,0.94676011,63530.0,63526.0,0.18316392]
[1719796293149,0.94676011,63530.0,63526.0,0.16316392]
[1719796293350,1.17456011,63530.0,63526.0,0.16216392]
[1719796293737,0.158409,63529.0,63526.0,0.16316392]
[1719796293940,0.158409,63529.0,63527.0,0.2]
[1719796293941,0.001,63529.0,63527.0,0.2]
[1719796294139,1.17456011,63530.0,63526.0,0.16216392]
[1719796294355,0.157413,63527.0,63526.0,0.16216392]
[1719796294557,0.63457798,63527.0,63526.0,0.16316392]
[1719796294763,0.94440398,63527.0,63526.0,0.16316392]
[1719796294971,0.62957798,63527.0,63526.0,0.16316392]
[1719796295225,0.72957798,63527.0,63526.0,0.16316392]
[1719796295448,1.04440398,63527.0,63526.0,0.16316392]
[1719796295581,1.35922998,63527.0,63526.0,0.001]
[1719796295795,1.35922998,63527.0,63497.0,0.4511]
[1719796295796,0.314861,63520.0,63497.0,0.4511]
[1719796296004,0.2288,63510.0,63503.0,0.2]
[1719796296216,0.2288,63510.0,63506.0,0.2]
[1719796296409,0.2288,63510.0,63506.0,0.36216392]
[1719796296613,0.2288,63510.0,63506.0,0.16216392]
[1719796296849,0.2288,63510.0,63509.0,0.2]
[1719796297073,0.39607146,63539.0,63517.0,0.2]
[1719796297074,0.014,63520.0,63517.0,0.2]
[1719796297275,0.2288,63529.0,63517.0,0.2]
[1719796297276,0.157414,63527.0,63520.0,0.2]
[1719796297481,0.26233898,63526.0,63523.0,0.2]
[1719796297688,0.16233898,63526.0,63524.0,0.2]
[1719796298101,0.157418,63525.0,63524.0,0.16216392]
[1719796298334,0.31975698,63525.0,63524.0,0.16216392]
[1719796298719,0.63459298,63525.0,63524.0,0.16216392]
[1719796298856,0.31975698,63525.0,63524.0,0.16216392]
[1719796299500,0.63459298,63525.0,63524.0,0.16216392]
[1719796299702,0.94942898,63525.0,63524.0,0.16216392]
[1719796300101,0.95042898,63525.0,63524.0,0.17516392]
[1719796300347,1.05042898,63525.0,63524.0,0.17516392]
[1719796301158,1.05042898,63525.0,63524.0,0.013]
[1719796301396,1.05042898,63525.0,63524.0,0.00318259]
[1719796301713,0.73559298,63525.0,63524.0,0.00318259]
[1719796301926,0.42075698,63525.0,63524.0,0.00318259]
[1719796302104,0.64955698,63525.0,63524.0,0.00318259]
[1719796302261,0.49213898,63525.0,63524.0,0.00318259]
[1719796302470,0.49213898,63525.0,63509.0,0.000924]
[1719796302667,0.2288,63510.0,63507.0,0.2]
[1719796302931,0.16233898,63523.0,63516.0,0.2]
[1719796302932,0.2288,63517.0,63516.0,0.2]
[1719796303133,0.2288,63517.0,63516.0,0.36216392]
[1719796303341,0.2288,63517.0,63516.0,0.38216392]
[1719796303675,0.1,63524.0,63519.0,0.2]
[1719796303888,0.1,63524.0,63523.0,0.2]
[1719796304089,0.1,63524.0,63523.0,0.16216392]
[1719796304466,0.23064,63525.0,63523.0,0.16216392]
[1719796304638,0.23064,63525.0,63524.0,0.2]
[1719796305207,0.00184,63525.0,63524.0,0.2]
[1719796305339,0.94576011,63530.0,63524.0,0.2]
[1719796305539,0.2288,63526.0,63524.0,0.2]
[1719796305791,0.31975798,63525.0,63523.0,0.16216392]
[1719796305976,0.16233898,63525.0,63523.0,0.16216392]
[1719796306350,0.16333898,63525.0,63524.0,0.002]
[1719796306753,0.16233898,63525.0,63523.0,0.16216392]
[1719796306980,0.16233898,63525.0,63523.0,0.16416392]
[1719796307156,0.16333898,63525.0,63523.0,0.16416392]
[1719796307946,0.16333898,63525.0,63524.0,0.2]
[1719796308122,0.16333898,63525.0,63508.0,0.04516963]
[1719796308123,0.23019619,63510.0,63508.0,0.04516963]
[1719796308349,0.23019619,63510.0,63509.0,0.94080484]
[1719796308548,0.23019619,63510.0,63509.0,0.67672032]
[1719796308713,0.23019619,63510.0,63509.0,0.94145672]
[1719796308923,0.23019619,63510.0,63509.0,0.87304906]
[1719796309094,0.23019619,63510.0,63509.0,0.94145718]
[1719796309294,0.24419619,63510.0,63509.0,0.87306636]
[1719796309653,0.24419619,63510.0,63509.0,0.32721618]
[1719796309842,0.24419619,63510.0,63508.0,0.16216392]
[1719796309843,0.23019619,63510.0,63508.0,0.16216392]
[1719796310073,0.24419619,63510.0,63509.0,0.32724696]
[1719796310190,0.24419619,63510.0,63509.0,0.96432306]
[1719796310390,0.24419619,63510.0,63509.0,0.8731124]
[1719796310801,0.24419619,63510.0,63509.0,2.05253855]
[1719796311031,0.24419619,63510.0,63509.0,2.80821189]
[1719796311239,0.23019619,63510.0,63509.0,5.82108689]
[1719796311551,0.22432462,63510.0,63509.0,5.59192254]
[1719796311749,0.22432462,63510.0,63509.0,5.80453149]
[1719796311978,0.21032462,63510.0,63509.0,4.75320988]
[1719796312182,0.19045305,63510.0,63509.0,5.79455487]
[1719796312377,0.20445305,63510.0,63509.0,5.22960276]
[1719796312577,0.20397557,63510.0,63509.0,5.22960276]
[1719796312789,0.18997557,63510.0,63509.0,5.4324556]
[1719796312989,0.18997557,63510.0,63509.0,5.33019949]
[1719796313321,0.20397557,63510.0,63509.0,5.33019949]
[1719796313755,0.20397557,63510.0,63509.0,5.16786051]
[1719796314325,0.20397557,63510.0,63509.0,5.86685511]
[1719796314585,0.20397557,63510.0,63509.0,5.42195511]
[1719796314772,0.20397557,63510.0,63509.0,5.42200653]
[1719796314896,0.02920719,63534.0,63517.0,0.2643]
[1719796315100,0.00841,63554.0,63537.0,0.2]
[1719796315101,0.15344649,63553.0,63537.0,0.2]
[1719796315308,0.2288,63539.0,63538.0,1.03506518]
[1719796315504,0.2288,63539.0,63538.0,1.03506422]
[1719796315750,0.2288,63539.0,63538.0,0.34949843]
[1719796315751,0.4802,63539.0,63538.0,0.34949843]
[1719796316166,0.965483,63539.0,63538.0,0.34949843]
[1719796316343,0.965483,63539.0,63537.0,0.16216392]
[1719796316344,0.157386,63538.0,63537.0,0.23101525]
[1719796316542,0.63843208,63538.0,63537.0,0.5116161]
[1719796316765,0.73843208,63538.0,63537.0,0.5116161]
[1719796316965,0.73843208,63538.0,63537.0,0.60356455]
[1719796317451,0.42366008,63538.0,63537.0,0.16216392]
[1719796317647,0.26627408,63538.0,63537.0,0.20814257]
[1719796317985,0.26627408,63538.0,63537.0,0.51160027]
[1719796318161,0.26627408,63538.0,63537.0,0.60355757]
[1719796318378,0.26627408,63538.0,63537.0,0.23112428]
[1719796318739,0.26727408,63538.0,63537.0,0.24412428]
[1719796319176,0.26727408,63538.0,63537.0,0.52458914]
[1719796319578,0.26727408,63538.0,63537.0,0.17516392]
[1719796319824,0.26727408,63538.0,63537.0,0.22114355]
[1719796320397,0.26727408,63538.0,63537.0,0.17516392]
[1719796320595,0.26333898,63538.0,63537.0,0.17516392]
[1719796320776,0.001,63538.0,63537.0,0.59357674]
[1719796320984,0.16333898,63538.0,63537.0,0.52458401]
[1719796321456,0.16333898,63538.0,63537.0,0.61658448]
[1719796321660,0.16333898,63538.0,63537.0,0.36242009]
[1719796321864,0.001,63538.0,63537.0,0.45440728]
[1719796322105,0.001,63538.0,63537.0,0.36242009]
[1719796322249,0.001,63538.0,63537.0,0.013]
[1719796322449,0.001,63538.0,63537.0,0.43136691]
[1719796322661,0.001,63538.0,63537.0,0.45437299]
[1719796322858,0.001,63538.0,63537.0,0.45432887]
[1719796323314,0.001,63538.0,63537.0,0.05897779]
[1719796323483,0.0039344,63547.0,63537.0,0.05897779]
[1719796323484,0.0039344,63547.0,63537.0,0.04597157]
[1719796323640,0.00967412,63548.0,63528.0,0.01]
[1719796323641,0.42285024,63530.0,63528.0,0.01]
[1719796323845,0.42285024,63530.0,63529.0,0.72170899]
[1719796324062,0.42285024,63530.0,63529.0,0.88387291]
[1719796324503,0.42285024,63530.0,63529.0,0.87387291]
[1719796324677,0.42285024,63530.0,63529.0,0.88387291]
[1719796325402,0.4227688,63530.0,63529.0,1.58948091]
[1719796325626,0.23721,63554.0,63548.0,0.2]
[1719796325627,0.00841,63554.0,63548.0,0.2]
[1719796325840,0.00841,63554.0,63548.0,0.36216392]
[1719796325987,0.00841,63554.0,63548.0,0.16216392]
[1719796326151,0.00841,63554.0,63548.0,0.36216392]
[1719796326350,0.00841,63554.0,63553.0,0.2]
[1719796326596,0.00841,63554.0,63553.0,0.13078653]
[1719796326956,0.00841,63554.0,63553.0,0.00314657]
[1719796327174,0.00393313,63570.0,63553.0,0.9491766]
[1719796327384,0.00393305,63574.0,63571.0,0.3039]
[1719796327584,0.00839,63584.0,63583.0,0.2]
[1719796327794,0.59169,63584.0,63583.0,0.16216392]
[1719796327994,0.01,63572.0,63562.0,0.48811044]
[1719796328229,0.896234,63584.0,63562.0,0.48811044]
[1719796328230,0.01,63563.0,63562.0,0.48811044]
[1719796328439,0.5733,63563.0,63562.0,0.16216392]
[1719796328674,0.96443898,63563.0,63562.0,0.16216392]
[1719796328879,0.2584,63574.0,63562.0,0.16216392]
[1719796329220,0.01,63566.0,63562.0,0.16216392]
[1719796329427,0.01,63572.0,63562.0,0.16216392]
[1719796329627,0.2584,63574.0,63562.0,0.16216392]
[1719796329628,0.01,63566.0,63562.0,0.16216392]
[1719796329829,0.17233898,63571.0,63562.0,0.16216392]
[1719796330241,0.00393298,63570.0,63562.0,0.16216392]
[1719796330641,0.00393298,63570.0,63562.0,0.16316392]